Cogmind - Beta 16 @@@ ROGUE MODE // 2025.11.16 @ 21:47:52 Player: Humbble Result: Destroyed by Q365-f with Gamma Rifle Performance ------------- Evolutions (7) 3500 Regions Visited (11) 2200 Robots Destroyed (73) 365 Value Destroyed (3091) 3091 Prototype IDs (9) 180 Alien Tech Used (0) 0 Bonus (2557) 2557 TOTAL SCORE: 11893 Bonus ------- Follower Combat Kills 57 Scanned by Researcher 500 Acquired SGEMP 2000 Cogmind --------- Core Integrity 0/1300 Matter 294/300 Energy 68/100 System Corruption 37% Temperature Cool (0) Movement Core (400) Ox7 Location -3/Testing Parts ------- > --- POWER (2) -------- (None) > --- PROPULSION (8) --- (None) > --- UTILITY (9) ------ Large Storage Unit Enhanced Optical Array Advanced Melee Analysis Suite Advanced Target Analyzer > --- WEAPON (2) ------- Lance > --- INVENTORY (15) --- Particle Reactor Particle Reactor Micro Antimatter Reactor Advanced Heat Sink Advanced Heat Sink Small Storage Unit Experimental Energy Well (600) Advanced Signal Interpreter Advanced Terrain Scanner Railgun SGEMP Prototype Peak State ------------ > --- POWER ------------ Micro Antimatter Reactor Micro Antimatter Reactor > --- PROPULSION ------- Nuclear Pulse Array Impulse Thruster Q-thruster Impulse Thruster Array Impulse Thruster Array > --- UTILITY ---------- Advanced Cryofiber Web Advanced Heat Sink Small Storage Unit Advanced Visual Processing Unit Enhanced Optical Array Advanced Melee Analysis Suite Advanced Target Analyzer Nanoactuators Advanced Reaction Control System > --- WEAPON ----------- Heavy Flail Katana > --- INVENTORY -------- Light Neutrino Core VTOL Module VTOL Module VTOL Module VTOL Module Nuclear Pulse Array Experimental Energy Well [Rating: 131] Favorites ----------- Power Light Fission Core Engine Ion Engine Power Core Light Fission Core Reactor Micro Antimatter Reactor Propulsion VTOL Module Treads Medium Treads Leg Aluminum Leg Flight Unit VTOL Module Utility Advanced Visual Processing Unit Device Nanoactuators Storage Small Storage Unit Processor Advanced Visual Processing Unit Protection Hardened Light Armor Plating Weapon Scythe Energy Gun Medium Laser Ballistic Gun Assault Rifle Impact Weapon Heavy Flail Slashing Weapon Scythe Piercing Weapon Lance Build | -11 -10 -9 -8 -7 -6 -5 -5 -5 -4 -3 -3 ------- Run | Yrd Mat Mat Mat Fac Fac Fac Upp Upp Fac Res Tes Slots Evolved 14 | . . 2 2 2 2 2 . . 2 2 . Power 1 | . . . . . 1 . . . . . . Propulsion 6 | . . 2 1 1 . 1 . . . 1 . Utility 7 | . . . 1 1 1 1 . . 2 1 . Weapon . | . . . . . . . . . . . . Parts Attached 114 | 8 5 18 9 2 10 19 4 . 10 3 26 Power 19 | 2 1 1 1 . 4 3 2 . 1 . 4 Engine 4 | 2 1 . . . . 1 . . . . . Core 11 | . . 1 1 . 4 2 2 . . . 1 Reactor 4 | . . . . . . . . . 1 . 3 Propulsion 49 | 2 . 13 5 1 4 10 2 . 2 . 10 Treads 5 | . . . . . . . . . . . 5 Leg 2 | 2 . . . . . . . . . . . Wheel . | . . . . . . . . . . . . Hover . | . . . . . . . . . . . . Flight 42 | . . 13 5 1 4 10 2 . 2 . 5 Utility 33 | 2 2 1 3 1 2 6 . . 5 3 8 Device 13 | 1 . . 1 . 1 4 . . 2 1 3 Storage 8 | 1 2 1 . . 1 . . . . . 3 Processor 6 | . . . 2 . . 2 . . 1 . 1 Hackware . | . . . . . . . . . . . . Protection 6 | . . . . 1 . . . . 2 2 1 Artifact . | . . . . . . . . . . . . Weapon 13 | 2 2 3 . . . . . . 2 . 4 Energy Gun 3 | 1 . . . . . . . . . . 2 Energy Cannon . | . . . . . . . . . . . . Ballistic Gun 5 | 1 2 1 . . . . . . . . 1 Ballistic Cannon . | . . . . . . . . . . . . Launcher . | . . . . . . . . . . . . Special Weapon . | . . . . . . . . . . . . Impact Weapon 1 | . . . . . . . . . 1 . . Slashing Weapon 3 | . . 2 . . . . . . 1 . . Piercing Weapon 1 | . . . . . . . . . . . 1 Special Melee Weapon . | . . . . . . . . . . . . Unidentified Prototypes 4 | . . . . . . 1 . . . . 3 Parts Lost 59 | . 1 1 1 . 3 14 1 . 2 1 35 Power 11 | . . . . . 1 3 1 . 1 1 4 Propulsion 28 | . . 1 1 . 2 6 . . 1 . 17 Utility 13 | . . . . . . 4 . . . . 9 Weapon 7 | . 1 . . . . 1 . . . . 5 Highest Loss Streak 17 | . 1 1 1 . 3 7 1 . 2 1 17 To Critical Strikes 1 | . . . . . . . . . . . 1 Average Backups 8 | 3 10 7 7 7 7 7 9 10 9 8 8 Power 1 | . 2 1 1 1 . 1 1 1 . . 1 Propulsion 4 | 1 4 5 5 5 6 5 5 5 5 6 3 Utility 1 | . 1 . . . . 1 3 4 3 2 2 Weapon . | . 2 . . . . . . . . . 1 Tool/Special . | . . . . . . . . . . . . Unused Backups 27 | . 5 11 . . 1 . . . 2 . 8 Power 6 | . 1 1 . . . . . . . . 4 Propulsion 9 | . 2 7 . . . . . . . . . Utility 10 | . 2 2 . . 1 . . . 2 . 3 Weapon 2 | . . 1 . . . . . . . . 1 Tool/Special . | . . . . . . . . . . . . Average Slot Usage (%) 90 | . 99 97 96 99 99 88 81 82 84 75 78 Engine 2 | . 14 . . . . 1 2 . . . . Core 5 | . . 10 9 7 13 7 7 11 8 2 . Reactor 2 | . . . . . . . . . 1 4 6 Treads 1 | . . . . . . . . . . . 6 Leg 5 | . 28 . . . . . . . . . . Flight 24 | . . 41 44 46 40 38 29 29 25 23 17 Device 10 | . 14 11 8 . 5 8 11 11 13 9 11 Storage 7 | . 14 11 9 7 6 5 5 5 5 4 4 Processor 11 | . . . 7 15 13 11 17 17 15 14 18 Protection 2 | . . . . 6 6 1 . . 4 4 1 Ballistic Gun 5 | . 26 8 . . . . . . . . . Slashing Weapon 6 | . . 13 18 15 13 10 5 5 5 4 3 Peak Build Rating 131 | 7 9 17 26 30 46 67 68 64 100 100 131 Average Rating 56 | 5 7 16 22 29 44 50 65 64 80 95 107 On Entrance 43 | . 7 9 17 24 30 46 67 64 64 95 100 Avg Prop Armor Cover (%) 3 | . . . . 6 2 . . . . . 3 Naked Turns . | . . . . . . . . . . . . Heaviest Build 68 | 15 30 15 16 19 29 35 33 27 49 46 68 Greatest Support 119 | 20 20 20 25 30 31 41 41 41 46 51 119 Greatest Overweight (x) 7 | . 1 1 . . 1 1 . . 1 . 7 Average Overweight (x) . | . . . . . . . . . . . . Largest Inventory Capacity 20 | 8 20 15 8 8 10 10 10 10 10 10 15 Average Capacity 9 | 7 12 8 8 8 8 9 10 10 10 10 10 Most Carried 15 | 6 15 15 8 8 8 10 10 10 10 9 15 Average Carried 8 | 3 10 7 7 7 7 7 9 10 9 8 9 Final Capacity 15 | 8 15 8 8 8 8 10 10 10 10 10 15 Final Carried 15 | 6 15 8 7 8 8 8 10 10 10 9 12 Class Distribution -------------------- 40% | Scavenger-Sprinter 22% | Mutant 13% | Sprinter 12% | Scavenger-Gladiator 6% | Commander-Sprinter 4% | Scavenger-Mutant Dominant Class ---------------- Mutant | -10/Materials Scavenger-Sprinter | -9/Materials Scavenger-Sprinter | -8/Materials Sprinter | -7/Factory Scavenger-Sprinter | -6/Factory Scavenger-Sprinter | -5/Factory Scavenger-Sprinter | -5/Upper Caves Scavenger-Sprinter | -5/Upper Caves Scavenger-Sprinter | -4/Factory Scavenger-Sprinter | -3/Research Scavenger-Gladiator | -3/Testing Resources | -11 -10 -9 -8 -7 -6 -5 -5 -5 -4 -3 -3 ----------- Run | Yrd Mat Mat Mat Fac Fac Fac Upp Upp Fac Res Tes Matter Collected 2237 | 301 192 148 . 82 333 166 131 . 136 21 727 Remotely . | . . . . . . . . . . . . Salvage Created 3587 | 107 205 152 . 82 371 548 104 . 88 72 1858 Parts 168 | 5 13 18 . 6 19 20 6 . 3 1 77 Haulers Intercepted 1 | . . . . . . 1 . . . . . Recyclers Shooed 2 | . 1 . . . 1 . . . . . . Parts Field Recycled . | . . . . . . . . . . . . Retrieved Matter . | . . . . . . . . . . . . Parts Self-Destructed 2 | . . . . . . . 2 . . . . Prevented . | . . . . . . . . . . . . Parts Restored . | . . . . . . . . . . . . Kills | -11 -10 -9 -8 -7 -6 -5 -5 -5 -4 -3 -3 ------- Run | Yrd Mat Mat Mat Fac Fac Fac Upp Upp Fac Res Tes Combat Hostiles Destroyed 57 | . 7 8 . . 7 7 4 . 1 1 22 Melee 40 | . . 5 . . 7 7 4 . . . 17 Guns 11 | . 7 3 . . . . . . . . 1 Classes Destroyed 16 | 2 2 . . 2 1 3 . . . . 6 Worker 4 | . . . . 3 1 . . . . . . Builder 1 | . . . . . . . . . . . 1 Tunneler 1 | 1 . . . . . . . . . . . Hauler 1 | . . . . . . 1 . . . . . Recycler 6 | 1 . . . . 1 1 . . . . 3 Operator 3 | . . . . 1 . . . . 1 . 1 Drone 1 | . . . . . . . . . . . 1 Watcher 1 | . . . . . . 1 . . . . . Swarmer 24 | . 3 7 . . 6 4 4 . . . . Grunt 6 | . 4 1 . . . 1 . . . . . Sentry 7 | . . . . . . 1 . . 1 1 4 Specialist 3 | . . . . . . . . . . . 3 Hunter 4 | . . . . . 1 1 . . . . 2 Programmer 9 | . . . . . . . . . . . 9 Striker 2 | . . . . . . . . . . . 2 Alpha 7 1 | . . . . . . . . . . . 1 Best Kill Streak 8 | 2 3 5 . 4 3 4 4 . 1 1 8 Combat Bots Only 5 | . 3 5 . . 3 4 4 . 1 1 4 Max Kills in Single Turn 1 | 1 1 1 . 1 1 1 1 . 1 1 1 Gunslinging . | . . . . . . . . . . . . Exploded . | . . . . . . . . . . . . Melee 1 | . . 1 . . 1 1 1 . . . 1 Uniques/NPCs Destroyed . | . . . . . . . . . . . . Combat | -11 -10 -9 -8 -7 -6 -5 -5 -5 -4 -3 -3 -------- Run | Yrd Mat Mat Mat Fac Fac Fac Upp Upp Fac Res Tes Hostile Shots Fired 638 | . 40 67 4 . 50 62 24 6 35 8 342 Missed 235 | . 11 25 3 . 14 19 7 5 23 3 125 Hits 403 | . 29 42 1 . 36 43 17 1 12 5 217 Melee 1 | . . . . . . 1 . . . . . Projectile 402 | . 29 42 1 . 36 42 17 1 12 5 217 Critical Strikes 15 | . . . . . 1 2 1 . . . 11 Part Disruptions 3 | . . . . . . . . . . . 3 Damage Taken 7857 | . 320 339 54 . 545 785 259 22 266 140 5127 Core 1856 | . 62 95 13 . 120 147 49 . 49 . 1321 Absorbed by Shields 20 | . . . . . . 20 . . . . . Redirected to Shielding 107 | . . . . . . . . . . . 107 Core Remaining (%) 88 | 100 75 76 97 100 85 . . 80 95 . . Volleys Fired 62 | 7 28 8 . . . . . . . . 19 Largest 2 | 2 2 2 . . . . . . . . 2 Hottest 123 | 70 40 40 . . . . . . . . 123 Shots Fired 113 | 14 55 16 . . . . . . . . 28 Gun 113 | 14 55 16 . . . . . . . . 28 Cannon . | . . . . . . . . . . . . Launcher . | . . . . . . . . . . . . Special . | . . . . . . . . . . . . Kinetic 87 | 7 55 16 . . . . . . . . 9 Thermal 25 | 7 . . . . . . . . . . 18 Explosive . | . . . . . . . . . . . . Electromagnetic 1 | . . . . . . . . . . . 1 Robot Hit Streak 8 | 4 8 2 . . . . . . . . 4 Robot Miss Streak 9 | 4 3 9 . . . . . . . . 8 Penetration Max . | . . . . . . . . . . . . Secondary Targets 3 | . 1 2 . . . . . . . . . Max Gunslinging Chain 1 | . 1 1 . . . . . . . . . Shots Hit Robots 265 | 8 36 9 . 5 22 37 5 . 10 8 125 Core Hits 88 | 3 13 8 . 4 11 14 4 . 1 1 29 Critical Kills 4 | . . . . . . . . . . . 4 Critical Parts Destroyed 16 | . . . . . . . . . 1 1 14 Critical Strikes 42 | . . . . . 6 5 . . 1 1 29 Destroy 3 | . . . . . . . . . . . 3 Smash 17 | . . . . . . . . . 1 1 15 Sever 16 | . . . . . 6 5 . . . . 5 Impale 6 | . . . . . . . . . . . 6 Melee Attacks 278 | . . 8 . 6 31 51 8 . 16 9 149 Impact 94 | . . . . . . . . . 14 8 72 Slashing 144 | . . 8 . 6 31 51 8 . 2 1 37 Piercing 40 | . . . . . . . . . . . 40 Sneak Attacks 13 | . . . . 3 3 2 . . . . 5 Combat Hostiles 1 | . . . . . 1 . . . . . . Follow-up Attacks 25 | . . . . 1 4 8 . . 1 1 10 Damage Inflicted 10162 | 107 459 219 . 284 863 1327 164 . 379 283 6077 Guns 1008 | 107 448 50 . . . . . . . . 403 Cannons . | . . . . . . . . . . . . Explosions . | . . . . . . . . . . . . Melee 9143 | . . 169 . 284 863 1327 164 . 379 283 5674 Ramming 11 | . 11 . . . . . . . . . . Kinetic 625 | 44 448 50 . . . . . . . . 83 Thermal 360 | 63 . . . . . . . . . . 297 Explosive . | . . . . . . . . . . . . Electromagnetic 23 | . . . . . . . . . . . 23 Impact 4238 | . . . . . . . . . 348 283 3607 Slashing 3594 | . . 169 . 284 863 1327 164 . 31 . 756 Piercing 1311 | . . . . . . . . . . . 1311 Highest Corruption 36 | . . . . . . 9 9 9 . . 36 Average Corruption 14 | . . . . . . 9 9 9 . . 15 Corruption Purged . | . . . . . . . . . . . . Corruption Blocked . | . . . . . . . . . . . . Effects 61 | . . . . . . 7 6 . . . 48 Message Errors 20 | . . . . . . 1 2 . . . 17 Matter Fused 20 | . . . . . . 2 3 . . . 15 Heat Flow Errors 5 | . . . . . . . . . . . 5 Energy Discharges 9 | . . . . . . 2 1 . . . 6 Parts Rejected 1 | . . . . . . . . . . . 1 Data Loss (minor) 4 | . . . . . . 2 . . . . 2 Misdirections 2 | . . . . . . . . . . . 2 Overload Shots . | . . . . . . . . . . . . Overflow Damage 1746 | . . . . . 65 44 7 . 56 39 1535 Projectiles . | . . . . . . . . . . . . Explosions . | . . . . . . . . . . . . Melee 1746 | . . . . . 65 44 7 . 56 39 1535 Knockbacks 23 | . . . . . . . . . . . 23 Impact 23 | . . . . . . . . . . . 23 Kinetic . | . . . . . . . . . . . . Secondary . | . . . . . . . . . . . . Self-Inflicted Damage . | . . . . . . . . . . . . Shots . | . . . . . . . . . . . . Rammed . | . . . . . . . . . . . . Targets Rammed 1 | . 1 . . . . . . . . . . Kicked 1 | . 1 . . . . . . . . . . Crushed . | . . . . . . . . . . . . Highest Temperature 373 | 45 . 8 30 308 373 339 72 3 112 . 223 Average Temperature 81 | 19 . 5 8 140 99 86 29 2 52 . 62 Received Heat Transfer 522 | . 114 . 9 . . 141 9 . 78 18 153 Effects 8 | . . . . 2 6 . . . . . . Shutdowns 2 | . . . . . 2 . . . . . . Energy Bleed 1 | . . . . . 1 . . . . . . Interference 4 | . . . . 2 2 . . . . . . Matter Decay 1 | . . . . . 1 . . . . . . Siege Activations . | . . . . . . . . . . . . Martial Activations . | . . . . . . . . . . . . Shielding Activations . | . . . . . . . . . . . . Robots Disrupted . | . . . . . . . . . . . . Combat Hostiles . | . . . . . . . . . . . . Robots Corrupted 8 | . . . . . . . . . 1 1 6 Combat Hostiles 6 | . . . . . . . . . 1 1 4 Parts Fried 21 | . . . . . . . . . . . 21 Impact Corruptions 43 | . . . . . . . . . 2 1 40 Robots Melted . | . . . . . . . . . . . . Combat Hostiles . | . . . . . . . . . . . . Parts Melted . | . . . . . . . . . . . . Heat Transferred 555 | 185 . . . . . . . . . . 370 Parts Sabotaged . | . . . . . . . . . . . . Parts Stolen . | . . . . . . . . . . . . Parts Stripped . | . . . . . . . . . . . . Power Chain Reactions . | . . . . . . . . . . . . Alert | -11 -10 -9 -8 -7 -6 -5 -5 -5 -4 -3 -3 ------- Run | Yrd Mat Mat Mat Fac Fac Fac Upp Upp Fac Res Tes Maximum Alert Level 1 | . . . . . 1 . . . . . 1 Low Security (%) 88 | 100 100 100 100 100 99 100 . . 100 100 61 Level 1 11 | . . . . . . . . . . . 38 Level 2 . | . . . . . . . . . . . . Level 3 . | . . . . . . . . . . . . Level 4 . | . . . . . . . . . . . . Level 5 . | . . . . . . . . . . . . High Security . | . . . . . . . . . . . . Max Security . | . . . . . . . . . . . . Peak Influence 281 | 10 60 125 58 25 211 89 . . 173 95 281 Initial 85 | . . . 19 21 2 77 . . 58 85 47 Average 74 | 1 11 60 21 9 55 37 . . 68 82 160 Influence Increases 2435 | 10 160 188 79 35 487 258 165 . 275 30 748 Destroy 0b10 Robot/C 1260 | . 140 160 . . 260 140 80 . 20 20 440 Destroy 0b10 Robot/NC 85 | 10 . . . 20 10 15 . . 5 . 25 Destroy Leader 174 | . 20 10 . . 30 34 10 . 10 10 50 Allied During Kill 38 | . . . . . 33 5 . . . . . Successful Hack 61 | . . 2 4 . 18 . . . 33 . 4 Disable Machine 75 | . . . . . . . . . . . 75 Destroy Structure 22 | . . 1 . . 1 4 . . 12 . 4 Partial Spotted 105 | . . 15 30 15 15 . . . 30 . . Lose Combat Pursuer 615 | . . . 45 . 120 60 75 . 165 . 150 Influence Decreases 2433 | 10 160 141 78 78 333 397 68 23 206 108 831 Entered New Map 323 | . . . 28 27 3 82 8 23 36 78 38 Time Decay 1507 | 10 150 141 40 51 240 165 50 . 150 20 490 Lost Part 523 | . 10 . 10 . 30 130 10 . 20 10 303 Lost Ally 80 | . . . . . 60 20 . . . . . Squads Dispatched 20 | . 1 1 . 2 4 2 . . 4 . 6 Investigation 4 | . . . . . . . . . 3 . 1 Extermination 9 | . . . . 1 1 2 . . 1 . 4 Reinforcement 7 | . 1 1 . 1 3 . . . . . 1 Assault . | . . . . . . . . . . . . Garrison . | . . . . . . . . . . . . Intercept . | . . . . . . . . . . . . Searches Triggered . | . . . . . . . . . . . . Construction Impeded . | . . . . . . . . . . . . Haulers Reinforced 1 | . . . . . 1 . . . . . . Active Scanning Responses . | . . . . . . . . . . . . Cargo Convoy Interrupts . | . . . . . . . . . . . . Stealth | -11 -10 -9 -8 -7 -6 -5 -5 -5 -4 -3 -3 --------- Run | Yrd Mat Mat Mat Fac Fac Fac Upp Upp Fac Res Tes Distress Signals 8 | . 2 1 1 . . . . . . . 4 Communications Jammed . | . . . . . . . . . . . . Distress Signals . | . . . . . . . . . . . . Times Spotted 156 | . 14 13 8 4 16 17 9 5 20 1 49 Peak Tracking Total 11 | . 6 5 7 2 5 6 5 5 11 1 8 Tactical Retreats 19 | . . . 1 . 3 4 2 . 5 . 4 Traps | -11 -10 -9 -8 -7 -6 -5 -5 -5 -4 -3 -3 ------- Run | Yrd Mat Mat Mat Fac Fac Fac Upp Upp Fac Res Tes Traps Triggered 3 | . 1 . 1 . . 1 . . . . . Indirectly . | . . . . . . . . . . . . Trap Hack Attempts . | . . . . . . . . . . . . Triggered . | . . . . . . . . . . . . Disarmed . | . . . . . . . . . . . . Reprogrammed . | . . . . . . . . . . . . Reused . | . . . . . . . . . . . . Traps Extracted . | . . . . . . . . . . . . Installed . | . . . . . . . . . . . . Triggered . | . . . . . . . . . . . . Machines | -11 -10 -9 -8 -7 -6 -5 -5 -5 -4 -3 -3 ---------- Run | Yrd Mat Mat Mat Fac Fac Fac Upp Upp Fac Res Tes Machines Disabled 5 | . . . . . . . . . . . 5 Max in Single Turn 1 | . . . . . . . . . . . 1 Garrison Access 3 | . . . . . . 1 . . 2 . . Machines Repaired . | . . . . . . . . . . . . Machines Dismantled . | . . . . . . . . . . . . Machines Sabotaged . | . . . . . . . . . . . . Overloaded Fab Kills . | . . . . . . . . . . . . Hacking | -11 -10 -9 -8 -7 -6 -5 -5 -5 -4 -3 -3 --------- Run | Yrd Mat Mat Mat Fac Fac Fac Upp Upp Fac Res Tes Machines Accessed 18 | . 1 2 1 1 3 2 . . 6 . 2 Terminals 9 | . 1 1 1 1 1 . . . 3 . 1 Fabricators 2 | . . . . . 2 . . . . . . Repair Stations . | . . . . . . . . . . . . Recycling Units 1 | . . . . . . 1 . . . . . Scanalyzers 2 | . . 1 . . . . . . 1 . . Garrison Access 4 | . . . . . . 1 . . 2 . 1 Total Hacks 43 | . 2 6 4 2 6 4 . . 16 . 3 Successful 19 | . . 2 2 2 4 2 . . 6 . 1 Failed 23 | . 2 3 2 . 2 2 . . 10 . 2 Catastrophic 6 | . . . . . . 1 . . 4 . 1 Database Lockouts 1 | . . 1 . . . . . . . . . Manual 2 | . . . . . . . . . 2 . . Terminals 22 | . 2 2 4 2 3 . . . 8 . 1 Fabricators 3 | . . . . . 3 . . . . . . Repair Stations . | . . . . . . . . . . . . Recycling Units 3 | . . . . . . 3 . . . . . Scanalyzers 9 | . . 4 . . . . . . 5 . . Garrison Access 6 | . . . . . . 1 . . 3 . 2 Terminal Hacks 10 | . . . 2 2 2 . . . 3 . 1 Record 3 | . . . . 2 . . . . . . 1 Emergency Access Points 2 | . . . 1 . 1 . . . . . . Locate Traps 1 | . . . 1 . . . . . . . . Registered Components 1 | . . . . . . . . . 1 . . Zone Layout 3 | . . . . . 1 . . . 2 . . Fabricator Hacks 2 | . . . . . 2 . . . . . . Build 2 | . . . . . 2 . . . . . . Repair Station Hacks . | . . . . . . . . . . . . Recycling Unit Hacks 1 | . . . . . . 1 . . . . . Report Inventory 1 | . . . . . . 1 . . . . . Scanalyzer 3 | . . 2 . . . . . . 1 . . Retrieve Study 3 | . . 2 . . . . . . 1 . . Garrison Access Hacks 3 | . . . . . . 1 . . 2 . . Seal Access 3 | . . . . . . 1 . . 2 . . Unauthorized Hacks . | . . . . . . . . . . . . Terminals . | . . . . . . . . . . . . Fabricators . | . . . . . . . . . . . . Repair Stations . | . . . . . . . . . . . . Recycling Units . | . . . . . . . . . . . . Scanalyzers . | . . . . . . . . . . . . Garrison Access . | . . . . . . . . . . . . Data Cores Recovered 2 | . . . . 1 . . . . . . 1 Used . | . . . . . . . . . . . . Hacking Detections 12 | . 1 2 1 . 1 1 . . 5 . 1 Full Trace Events 4 | . . . . . . . . . 3 . 1 Feedback Events 1 | . . . . . . . . . . . 1 Corruption 1 | . . . . . . . . . . . 1 Feedback Blocked . | . . . . . . . . . . . . Robot Schematics Acquired 1 | . . . . . . . . . . . 1 Robots Built 5 | . . . . . 5 . . . . . . Authchips . | . . . . . . . . . . . . Time 286 | . . . . . 286 . . . . . . Total Robot Build Rating 22 | . . . . . 22 . . . . . . Part Schematics Acquired 5 | . . . . . . . . . . . 5 Parts Built . | . . . . . . . . . . . . Authchips . | . . . . . . . . . . . . Time . | . . . . . . . . . . . . Total Part Build Rating . | . . . . . . . . . . . . Part Studies Acquired 3 | . . 2 . . . . . . 1 . . Parts Repaired . | . . . . . . . . . . . . Time . | . . . . . . . . . . . . Parts Recycled . | . . . . . . . . . . . . Recycled Matter . | . . . . . . . . . . . . Retrieved Matter . | . . . . . . . . . . . . Retrieved Components . | . . . . . . . . . . . . Parts Scanalyzed . | . . . . . . . . . . . . Part Schematics Acquired . | . . . . . . . . . . . . Parts Damaged . | . . . . . . . . . . . . Bothacking | -11 -10 -9 -8 -7 -6 -5 -5 -5 -4 -3 -3 ------------ Run | Yrd Mat Mat Mat Fac Fac Fac Upp Upp Fac Res Tes Used RIF Installer . | . . . . . . . . . . . . Robots Hacked . | . . . . . . . . . . . . Non-combat . | . . . . . . . . . . . . Combat . | . . . . . . . . . . . . Robot Hacks Applied . | . . . . . . . . . . . . Relay Couplers Released . | . . . . . . . . . . . . Fabnet Peak Effective % . | . . . . . . . . . . . . Robots Rewired . | . . . . . . . . . . . . Allies Hacked . | . . . . . . . . . . . . Hacks Repelled . | . . . . . . . . . . . . Allies | -11 -10 -9 -8 -7 -6 -5 -5 -5 -4 -3 -3 -------- Run | Yrd Mat Mat Mat Fac Fac Fac Upp Upp Fac Res Tes Total Allies 5 | . . . . . 5 . . . . . . Largest Group 5 | . . . . . 5 1 . . . . . Highest-Rated Group 142 | . . . . . 142 20 . . . . . Highest-Rated Ally 41 | . . . . . 41 20 . . . . . Total Orders 8 | . . . . . 8 . . . . . . ROAM 5 | . . . . . 5 . . . . . . FOLLOW 2 | . . . . . 2 . . . . . . GUARD 1 | . . . . . 1 . . . . . . Ally Attacks 33 | . . . . . 31 2 . . . . . Total Damage 1030 | . . . . . 1030 . . . . . . Kills 6 | . . . . . 6 . . . . . . Allies Corrupted . | . . . . . . . . . . . . Allies Melted . | . . . . . . . . . . . . Intel | -11 -10 -9 -8 -7 -6 -5 -5 -5 -4 -3 -3 ------- Run | Yrd Mat Mat Mat Fac Fac Fac Upp Upp Fac Res Tes Active Infowar (turns) 4313 | 37 783 327 90 153 784 395 107 5 301 51 1280 Optics 3132 | . . . 56 153 784 395 107 5 301 51 1280 Terrain 955 | . . . . . 778 177 . . . . . Traps 626 | . . . . . . 251 107 5 263 . . Seismic 1203 | 37 783 327 56 . . . . . . . . Robot Analysis Total . | . . . . . . . . . . . . Derelict Logs Recovered 1 | . . . . . . . 1 . . . . Drone Launches . | . . . . . . . . . . . . Drone Recoveries . | . . . . . . . . . . . . Exploration | -11 -10 -9 -8 -7 -6 -5 -5 -5 -4 -3 -3 ------------- Run | Yrd Mat Mat Mat Fac Fac Fac Upp Upp Fac Res Tes Turns Passed 4447 | 117 783 327 90 168 823 395 107 5 301 51 1280 Spaces Moved 5859 | 71 384 292 289 480 742 716 324 18 880 114 1549 Core 9 | 8 . . . . . . . . . . 1 Treads 250 | . . . . . . . . . . . 250 Legs 447 | 63 384 . . . . . . . . . . Wheels . | . . . . . . . . . . . . Hover . | . . . . . . . . . . . . Flight 5153 | . . 292 289 480 742 716 324 18 880 114 1298 Fastest Speed 18 | 50 120 26 24 21 20 18 25 25 25 28 28 Average Speed 41 | 112 162 29 25 24 22 21 25 25 26 28 51 Slowest Speed 400 | 120 190 114 27 26 104 106 25 25 108 28 400 Overloaded Moves . | . . . . . . . . . . . . Propulsion Burnouts . | . . . . . . . . . . . . Robots Hopped 1 | . . . . . . 1 . . . . . Potential Cave-ins . | . . . . . . . . . . . . Cave-ins Triggered . | . . . . . . . . . . . . Exploration Rate (%) 29 | 4 43 32 30 23 16 23 64 4 20 3 86 Regions Visited 11 Branch Regions 3 Pre-discovered Areas . | . . . . . . . . . . . . Known Exits Taken . | . . . . . . . . . . . . Unknown Exits Taken 11 | 1 1 1 1 1 1 1 1 1 1 1 . Scrap Searched 2 | . . . . . . . 2 . . . . Spaces Dug 11 | . . . . . 1 2 . . 6 . 2 Terrain Destroyed 11 | . . . . . 1 2 . . 6 . 2 Melee 11 | . . . . . 1 2 . . 6 . 2 Projectile . | . . . . . . . . . . . . AOE . | . . . . . . . . . . . . Terrain Rammed . | . . . . . . . . . . . . Walls Destroyed . | . . . . . . . . . . . . Machines Disabled . | . . . . . . . . . . . . Actions | -11 -10 -9 -8 -7 -6 -5 -5 -5 -4 -3 -3 --------- Run | Yrd Mat Mat Mat Fac Fac Fac Upp Upp Fac Res Tes Total 7472 | 91 489 511 304 521 1361 895 342 17 942 125 1874 Wait 994 | . 46 147 . 33 569 85 . . 23 . 91 Move 5846 | 70 383 291 288 479 741 713 323 17 879 113 1549 Hop 1 | . . . . . . 1 . . . . . Pick Up 75 | 6 16 14 1 1 5 5 2 . 3 . 22 Fast Attach 53 | 6 . 7 3 1 1 9 2 . 3 1 20 Attach 44 | 1 1 6 3 1 4 11 . . 2 2 13 Detach 10 | . . . . . . 5 . . 1 . 4 Swap 52 | 1 5 6 4 1 7 7 3 . 8 1 9 Drop 78 | . 9 24 5 . 7 6 4 . 8 . 15 Fire 62 | 7 28 8 . . . . . . . . 19 Melee 240 | . . 8 . 5 27 41 8 . 15 8 128 Ram . | . . . . . . . . . . . . Kick 1 | . 1 . . . . . . . . . . Crush . | . . . . . . . . . . . . Escape Stasis 16 | . . . . . . 12 . . . . 4 Rewire . | . . . . . . . . . . . . Trap . | . . . . . . . . . . . . Miscellaneous . | . . . . . . . . . . . . Route ------- -11/Scrapyard -10/Materials (discovered 2 exits: *Mat / [*Min]) -9/Materials -8/Materials -7/Factory -6/Factory -5/Factory -5/Upper Caves -5/Upper Caves -4/Factory -3/Research -3/Testing History --------- Turn | Location | Event 10 | -11/Scrapyard | Discovered new exit (range 15) 118 | -11/Scrapyard | Entered Materials 346 | -10/Materials | Build established: Mutant 392 | -10/Materials | Discovered new exit (range 9) 525 | -10/Materials | Discovered new exit (range 5) 901 | -10/Materials | Entered another Materials area 901 | -9/Materials | Evolved 2 slots: Propulsion x2 1223 | -9/Materials | Central database locked down 1224 | -9/Materials | Discovered new exit (range 11) 1228 | -9/Materials | Entered another Materials area 1228 | -8/Materials | Evolved 2 slots: Propulsion x1, Utility x1 1316 | -8/Materials | Discovered new exit (range 5) 1318 | -8/Materials | Entered Factory 1318 | -7/Factory | Evolved 2 slots: Propulsion x1, Utility x1 1482 | -7/Factory | Discovered new exit (range 14) 1486 | -7/Factory | Entered another Factory area 1486 | -6/Factory | Evolved 2 slots: Power x1, Utility x1 1532 | -6/Factory | Build established: Sprinter 1675 | -6/Factory | Lost 3 parts (1p2n) 1836 | -6/Factory | Fabricated B-48 Gladiator (x3) 1980 | -6/Factory | Build established: Scavenger-Sprinter 1996 | -6/Factory | Fabricated H-66 Slayer (x2) 2251 | -6/Factory | Discovered new exit (range 20) 2309 | -6/Factory | Entered another Factory area 2309 | -5/Factory | Accompanied by 1 ally 2309 | -5/Factory | Evolved 2 slots: Propulsion x1, Utility x1 2465 | -5/Factory | Lost 3 parts (1p2u) 2520 | -5/Factory | Lost 7 parts (2p3n2u) 2675 | -5/Factory | Lost 4 parts (3n1w) 2695 | -5/Factory | Discovered new exit (range 10) 2704 | -5/Factory | Entered Upper Caves 2736 | -5/Upper Caves | Learned Factory trap positions 2775 | -5/Upper Caves | Attracted the attention of an 0b10 checkpoint 2810 | -5/Upper Caves | Discovered new exit (range 7) 2811 | -5/Upper Caves | Entered another Upper Caves area 2814 | -5/Upper Caves | Discovered new exit (range 8) 2816 | -5/Upper Caves | Entered Factory 2816 | -4/Factory | Evolved 2 slots: Utility x2 2817 | -4/Factory | Loaded intel: 89 trap records 3116 | -4/Factory | Discovered new exit (range 5) 3117 | -4/Factory | Entered Research 3117 | -3/Research | Evolved 2 slots: Propulsion x1, Utility x1 3137 | -3/Research | Discovered new exit (range 9) 3168 | -3/Research | Entered Testing 3185 | -3/Testing | Scanned by Researcher 3249 | -3/Testing | Lost 4 parts (1p3u) 3404 | -3/Testing | Spotted Striker 3404 | -3/Testing | Spotted Striker 3453 | -3/Testing | System corruption reached 10% 3504 | -3/Testing | Spotted Alpha 7 3506 | -3/Testing | Destroyed Alpha 7 3515 | -3/Testing | Destroyed Striker 3531 | -3/Testing | Destroyed Striker 3542 | -3/Testing | Stole the SGEMP Prototype 3726 | -3/Testing | Lost 4 parts (1n1u2w) 3954 | -3/Testing | Lost 7 parts (1p6n) 4205 | -3/Testing | Build established: Scavenger-Gladiator 4370 | -3/Testing | Core integrity fell below 50% 4409 | -3/Testing | System corruption reached 30% 4438 | -3/Testing | Core integrity fell below 20% 4448 | -3/Testing | Destroyed by Q365-f with Gamma Rifle Last Messages --------------- 04422_ Katana destroyed. 04423_ Acquired 4 matter. 04424_ Penetrated by Slug. 04424_ P-80 Master destroyed. 04426_ Q365-f suffers critical hit (Impale). 04427_ Penetrated by Slug. 04428_ Biometal Medium Treads destroyed. 04429_ Penetrated by Slug. 04429_ Nanoactuators destroyed. 04431_ System corrupted: Heat flow error (+118). 04431_ Penetrated by Slug. 04433_ Slug penetrates Wall. 04433_ Penetrated by Slug. 04442_ Destroyed Lgt. Antimatter Reactor. 04443_ Penetrated by Slug. 04443_ Q365-f suffers critical hit (Destroy). 04444_ Adv. Visual Processing Unit destroyed. 04445_ Swarm Drone melts down. 04446_ System corrupted: Matter fused (-6). 04447_ Q365-f suffers critical hit (Impale). Map ----- +----------------------------------------------------+ | | | | | | | | | | | | | | | | | | | | | | | | | | | | | | | | | | | ???????????????????????####?????################## | | ???????????????????????#[ #?????# # """ "" | | ?????????????????????##" ""##???# # """ "" | | ?????????????????????#" "#???# # """ "" | | ?????????????????????#""=!" #???# [ # | | ?????????????????????#"!!* "#????? #?? = | | ?????????????????????#%!%!= #??????? ?????? | | ?????????????????????###+#############/##########/ | | ??????????????????????#=[@ | | ??????????????????????#|[%Q wk | | ??????########????????# #################/######/ | | ??????#""""""#????????# ###########???? #?# | | ??????#"" """#????????# # #?? ] #?#" | | ??????#"" " ####?????# # """ #?# ! #?#" | | ??????#"" ## ####### # ""R" #?# #?#"! | | ??????#"" !!+ # "" " #?# #?##" | | ??????#" %=%+ + #?# #??#]] | | ??????#" ![## ####### # #?#####+##??### | | ??????#"""=*!#######??# # #?????# #?????? | | ??????#####%[#????????# # [ #?????# #?????? | | ??????????####????????# ########/##?????# ######? | | ??????????????????????# #??##### ######## # #? | | ??????????????????????# ####"" # # #? | | ??????????????????????# ##!" # # #? | | ??????????????????????# ##" # # #? | | ??????????????????????# #" " + + #? | | ??????????????????????# #""""" # #####+## # #? | | ??????????????????????# #""""" # ## # # #? | | ??????????????????????# ######## ##! =# # #? | | ??????????????????????# # ## ## # # #? | | ??????????????????????# # """ ?# ## """ # ######? | | ??????????????????????# # """ ?# ## """ # #?????? | | ??????????????????????# # """??# ## """ # #?????? | +----------------------------------------------------+ Best States ------------- Heat Dissipation 84 Energy Generation 49 Energy Capacity 390 Matter Stores 300 Matter Capacity 300 Sight Range 22 Terrain Scan Range 20 Terrain Scan Density 10 Base Temperature (-) 200 Armor Coverage 600 Propulsion Shielding 66 Melee Speed Boost 30 Evasion (%) 76 Melee Accuracy 8 Target Analysis 8 Recoil Reduction 4 Item Schematics ----------------- Neutron Missile Launcher | -3/Testing | Archive Centrium Greatsword | -3/Testing | Archive Hvy. Neutron Cannon | -3/Testing | Archive Electron Diverter | -3/Testing | Archive Stealth Drone Bay | -3/Testing | Archive Robot Schematics ------------------ Y-64 Sentinel | -3/Testing | Archive Fabricated ------------ B-48 Gladiator | x3 | -6/Factory | Preloaded H-66 Slayer | x2 | -6/Factory | Preloaded Repaired ---------- Nothing Studied --------- Flight Unit | -9/Materials | Hacked VTOL Module | -9/Materials | Hacked Hvy. Flail | -4/Factory | Hacked Alien Tech Used ----------------- None Achievements -------------- Deadly Force Hammer Time My Command Is Your Wish Part-time Excavator Tailor-made Challenges ------------ None Game ------ Seed CompanionDirectedArray Manual? 0 Play Time 02:09:31 Cumulative 57.3 hours Start 2025.11.13 @ 21:36:28 End 2025.11.16 @ 21:47:52 Sessions 7 Manual Loads 0 Difficulty Rogue Special Mode None Game No. 54 Rogue 49 Adventurer 0 Explorer 5 Win Type - Total 0 Types 0/0/0/0/0/0/0/0/0/0 Lore% 26 Gallery% 28 Achievement% 20 Wizard Run 0 Options --------- Layout 0 ASCII 0 Keyboard 1 Movement Mouse Keybinds 0 Fullscreen 2 Font 18/SmallcapsGlow Map View 76x50 Zoom Use 20% Tactical HUD 1 Map Filters NONE Filters NONE Steam 1 RUN: 85c05f0f-4646-43f2-8101-4a2af090c634